bitfinex/quotes_BTCUSD_20240613
["timestamp","ask_amount","ask_price","bid_price","bid_amount"]
[1718249337580,1.04792307,67530.0,67529.0,0.37255093]
[1718249337762,1.55206862,67530.0,67529.0,0.37255093]
[1718249337978,1.43392176,67530.0,67529.0,0.37255093]
[1718249338290,1.54392176,67530.0,67529.0,0.37255093]
[1718249338401,1.58500406,67530.0,67529.0,0.37255093]
[1718249338605,1.46212483,67530.0,67529.0,0.37255093]
[1718249338850,1.60382217,67530.0,67529.0,0.37255093]
[1718249339040,0.83394861,67530.0,67529.0,0.37255093]
[1718249339254,1.40610857,67530.0,67529.0,0.37255093]
[1718249339904,1.42010857,67530.0,67529.0,0.37255093]
[1718249340340,1.40610857,67530.0,67529.0,0.37255093]
[1718249340546,1.46546517,67530.0,67529.0,0.37255093]
[1718249340752,1.46545767,67530.0,67529.0,0.37255093]
[1718249340965,1.42010107,67530.0,67529.0,0.37255093]
[1718249341164,0.92010107,67530.0,67529.0,0.37255093]
[1718249341421,0.86194111,67530.0,67529.0,0.37355093]
[1718249341654,0.39521851,67530.0,67529.0,0.53495093]
[1718249341861,0.29521851,67530.0,67529.0,0.53495093]
[1718249342495,0.15089858,67530.0,67529.0,0.53495093]
[1718249342769,0.014,67530.0,67529.0,0.67591602]
[1718249342996,0.00879365,67549.0,67533.0,0.1]
[1718249343217,0.12285271,67548.0,67537.0,0.1]
[1718249343430,0.14431993,67555.0,67538.0,0.0253793]
[1718249343651,0.14431993,67555.0,67543.0,0.0819]
[1718249343866,0.14431993,67555.0,67545.0,0.0819]
[1718249344092,0.14431993,67555.0,67546.0,0.1627]
[1718249344946,0.01810937,67560.0,67547.0,0.00307412]
[1718249345162,0.14431993,67559.0,67550.0,0.2348]
[1718249345374,0.14431993,67559.0,67552.0,0.152]
[1718249345589,0.00086,67562.0,67555.0,0.152]
[1718249345809,0.14431993,67561.0,67555.0,0.152]
[1718249346489,0.00086,67562.0,67556.0,0.02322]
[1718249346658,0.21647989,67561.0,67555.0,0.152]
[1718249346871,0.21647989,67561.0,67555.0,0.161]
[1718249347288,0.21647989,67561.0,67555.0,0.152]
[1718249347506,0.21847989,67561.0,67555.0,0.153]
[1718249347720,0.23147989,67561.0,67555.0,0.154]
[1718249348350,0.01662307,67559.0,67555.0,0.154]
[1718249348567,0.01662307,67557.0,67555.0,0.154]
[1718249349039,0.160943,67557.0,67555.0,0.152]
[1718249349254,0.160943,67556.0,67555.0,0.153]
[1718249349462,0.14431993,67556.0,67555.0,0.154]
[1718249349677,0.14431993,67556.0,67555.0,0.153]
[1718249349906,0.14431993,67556.0,67555.0,0.152]
[1718249350381,0.14431993,67556.0,67555.0,0.157]
[1718249350815,0.14531993,67556.0,67555.0,0.153]
[1718249351027,0.14431993,67556.0,67555.0,0.152]
[1718249351701,0.16763023,67556.0,67548.0,0.000946]
[1718249351945,0.07215996,67554.0,67549.0,0.2415]
[1718249352151,0.14431993,67553.0,67549.0,0.2415]
[1718249352362,0.14431993,67553.0,67548.0,0.000946]
[1718249352363,0.01662307,67552.0,67548.0,0.000946]
[1718249352581,0.01662307,67549.0,67548.0,0.000946]
[1718249352796,0.160943,67549.0,67548.0,0.000946]
[1718249354103,0.162943,67549.0,67548.0,0.001946]
[1718249354544,0.14631993,67549.0,67548.0,0.001946]
[1718249354763,0.175943,67549.0,67548.0,0.002946]
[1718249355824,0.15931993,67549.0,67548.0,0.002946]
[1718249356038,0.15731993,67549.0,67548.0,0.001946]
[1718249356248,0.15831993,67549.0,67548.0,0.000946]
[1718249356461,0.17231993,67549.0,67548.0,0.000946]
[1718249356739,0.15831993,67549.0,67548.0,0.000946]
[1718249357157,0.18631993,67549.0,67548.0,0.000946]
[1718249359649,0.202943,67549.0,67548.0,0.000946]
[1718249362417,0.188943,67549.0,67548.0,0.000946]
[1718249362643,0.2078373,67549.0,67548.0,0.000946]
[1718249362860,0.7076373,67549.0,67548.0,0.001946]
[1718249363113,0.80250208,67549.0,67548.0,0.001946]
[1718249363321,0.80250208,67549.0,67548.0,0.000946]
[1718249363515,0.6936373,67549.0,67548.0,0.001946]
[1718249363724,0.6796373,67549.0,67548.0,0.001946]
[1718249364151,0.6796373,67549.0,67548.0,0.000946]
[1718249364887,0.7036373,67549.0,67548.0,0.000946]
[1718249365064,0.80760746,67549.0,67548.0,0.000946]
[1718249365933,0.88060746,67549.0,67548.0,0.000946]
[1718249366140,1.15978108,67549.0,67548.0,0.000946]
[1718249366348,1.23194104,67549.0,67548.0,0.000946]
[1718249366555,1.40426097,67549.0,67548.0,0.001946]
[1718249366780,1.16294104,67549.0,67548.0,0.001946]
[1718249367228,1.17694104,67549.0,67548.0,0.001946]
[1718249367445,1.17694104,67549.0,67548.0,0.000946]
[1718249367446,0.85576742,67549.0,67548.0,0.000946]
[1718249367641,1.18593876,67549.0,67548.0,0.000946]
[1718249367844,1.22393876,67549.0,67548.0,0.001946]
[1718249368043,1.36825804,67549.0,67548.0,0.001946]
[1718249368919,1.46825804,67549.0,67548.0,0.001946]
[1718249369447,1.40072365,67549.0,67548.0,0.001946]
[1718249369689,1.25240372,67549.0,67548.0,0.000946]
[1718249369889,1.35240372,67549.0,67548.0,0.000946]
[1718249370099,1.36640372,67549.0,67548.0,0.001946]
[1718249370504,1.35240372,67549.0,67548.0,0.000946]
[1718249370724,1.22953926,67549.0,67548.0,0.000946]
[1718249370969,1.36641641,67549.0,67548.0,0.001946]
[1718249371876,1.38379717,67549.0,67548.0,0.001946]
[1718249372536,1.28379717,67549.0,67548.0,0.001946]
[1718249372755,1.4873651,67549.0,67548.0,0.001946]
[1718249372992,1.4773651,67549.0,67548.0,0.001946]
[1718249373149,1.4773651,67549.0,67529.0,0.37255093]
[1718249373150,0.01662307,67530.0,67529.0,0.37255093]
[1718249373415,0.160943,67530.0,67529.0,0.37255093]
[1718249374652,0.174943,67530.0,67529.0,0.37255093]
[1718249374890,0.160943,67530.0,67529.0,0.37255093]
[1718249375088,0.174943,67530.0,67529.0,0.37355093]
[1718249375268,0.188943,67530.0,67529.0,0.37355093]
[1718249376256,0.174943,67530.0,67529.0,0.37255093]
[1718249377196,0.188943,67530.0,67529.0,0.37255093]
[1718249379662,0.510343,67530.0,67529.0,0.37255093]
[1718249379878,0.64323202,67530.0,67529.0,0.37255093]
[1718249380171,1.09479776,67530.0,67529.0,0.37255093]
[1718249380376,1.08079776,67530.0,67529.0,0.37255093]
[1718249380576,1.06679776,67530.0,67529.0,0.37255093]
[1718249380716,1.25979776,67530.0,67529.0,0.37255093]
[1718249380932,1.37379776,67530.0,67529.0,0.37255093]
[1718249381135,1.35979776,67530.0,67529.0,0.37255093]
[1718249381344,1.34579776,67530.0,67529.0,0.37255093]
[1718249381544,1.35979776,67530.0,67529.0,0.37255093]
[1718249381798,1.25979776,67530.0,67529.0,0.37255093]
[1718249381991,1.40979776,67530.0,67529.0,0.37255093]
[1718249382238,1.35979776,67530.0,67529.0,0.37255093]
[1718249382470,1.40979776,67530.0,67529.0,0.37255093]
[1718249382680,1.40979776,67530.0,67516.0,0.009427]
[1718249382681,0.72,67517.0,67516.0,0.009427]
[1718249382892,0.02662307,67513.0,67512.0,0.009427]
[1718249383113,0.34383202,67513.0,67512.0,0.009427]
[1718249383333,0.43385678,67513.0,67512.0,0.009427]
[1718249383559,0.86399161,67513.0,67512.0,0.009427]
[1718249383773,0.81753449,67513.0,67512.0,0.009427]
[1718249383972,1.36184345,67513.0,67512.0,0.009427]
[1718249384175,1.34071154,67513.0,67512.0,0.009427]
[1718249384390,0.71662307,67501.0,67496.0,0.009427]
[1718249384613,0.860943,67501.0,67496.0,0.009427]
[1718249384834,0.960943,67501.0,67496.0,0.009427]
[1718249385049,1.08388795,67501.0,67496.0,0.009427]
[1718249385214,1.11053693,67501.0,67496.0,0.009427]
[1718249385433,1.08388795,67501.0,67496.0,0.009427]
[1718249385648,1.15688795,67501.0,67496.0,0.009427]
[1718249385862,1.23548795,67501.0,67496.0,0.009427]
[1718249386077,1.24548795,67501.0,67496.0,0.009427]
[1718249386274,1.31764791,67501.0,67496.0,0.009427]
[1718249386496,1.30764791,67501.0,67496.0,0.009427]
[1718249386705,1.46196784,67501.0,67496.0,0.009427]
[1718249387443,1.46198041,67501.0,67496.0,0.009427]
[1718249388304,1.41784587,67501.0,67496.0,0.009427]
[1718249388819,1.54184587,67501.0,67500.0,0.08491904]
[1718249389062,1.65584587,67501.0,67500.0,0.02534857]
[1718249389277,0.22,67496.0,67495.0,0.37032932]
[1718249389528,0.80502218,67496.0,67495.0,0.36616067]
[1718249389761,1.99525482,67496.0,67495.0,0.36616067]
[1718249389974,1.99525482,67496.0,67495.0,0.35855728]
[1718249389975,1.85618648,67496.0,67495.0,0.35855728]
[1718249390198,1.7662727,67496.0,67495.0,0.35855728]
[1718249390419,1.61953348,67496.0,67495.0,0.35855728]
[1718249391058,1.57956348,67496.0,67495.0,0.35855728]
[1718249391700,1.45660596,67496.0,67495.0,0.35855728]
[1718249391905,1.59358965,67496.0,67495.0,0.35855728]
[1718249392122,1.50367587,67496.0,67495.0,0.35855728]
[1718249392329,1.53313253,67496.0,67495.0,0.35855728]
[1718249392535,1.48967587,67496.0,67495.0,0.35855728]
[1718249392761,1.55013299,67496.0,67495.0,0.35855728]
[1718249393385,1.50367587,67496.0,67495.0,0.35855728]
[1718249393600,1.53613299,67496.0,67495.0,0.35855728]
[1718249393768,1.18900587,67496.0,67495.0,0.35855728]
[1718249394018,2.01337687,67496.0,67495.0,0.35855728]
[1718249394194,0.12215996,67467.0,67466.0,0.43295979]
[1718249394436,0.26647989,67467.0,67447.0,0.1558]
[1718249394616,0.14431993,67466.0,67452.0,0.1429]
[1718249394870,0.14431993,67466.0,67453.0,0.1558]
[1718249395905,0.05,67463.0,67452.0,0.1429]
[1718249396155,0.05,67460.0,67446.0,0.06646068]
[1718249396404,0.05,67459.0,67445.0,0.05358424]
[1718249396635,0.07215996,67465.0,67443.0,0.11801959]
[1718249396636,0.05,67457.0,67443.0,0.11801959]
[1718249396855,0.05,67457.0,67441.0,0.0136274]
[1718249396856,0.1,67442.0,67441.0,0.0136274]
[1718249397097,0.05,67442.0,67441.0,0.0136274]
[1718249397325,0.1,67442.0,67441.0,0.2462274]
[1718249397748,0.24431993,67442.0,67441.0,0.2462274]
[1718249397962,0.24431993,67442.0,67441.0,0.0136274]
[1718249398419,0.19431993,67442.0,67441.0,0.0136274]
[1718249398630,0.05,67443.0,67441.0,0.0136274]
[1718249398847,0.05,67442.0,67441.0,0.0136274]
[1718249399063,0.01662307,67452.0,67441.0,0.0136274]
[1718249399064,0.1,67452.0,67441.0,0.02928014]
[1718249399281,0.05,67447.0,67442.0,0.3845]
[1718249399495,0.19431993,67447.0,67442.0,0.2416]
[1718249400511,0.07215996,67451.0,67442.0,0.2416]
[1718249400512,0.05,67451.0,67442.0,0.2416]
[1718249400736,0.05,67450.0,67448.0,0.1]
[1718249400945,0.05,67450.0,67449.0,0.2416]
[1718249401366,0.05,67455.0,67449.0,0.3416]
[1718249401592,0.03949533,67452.0,67449.0,0.3845]
[1718249401809,0.05,67459.0,67449.0,0.2234]
[1718249401810,0.03949533,67457.0,67449.0,0.2234]
[1718249402024,0.03949533,67459.0,67450.0,0.2518]
[1718249402240,0.03949533,67458.0,67452.0,0.1518]
[1718249402483,0.14431993,67464.0,67455.0,0.1]
[1718249402484,0.19431993,67464.0,67455.0,0.1]
[1718249402711,0.05,67464.0,67457.0,0.1]
[1718249402924,0.08949533,67464.0,67459.0,0.1]
[1718249403146,0.08949533,67464.0,67457.0,0.1]
[1718249403358,0.05,67471.0,67463.0,0.1518]
[1718249403602,0.03949533,67471.0,67464.0,0.10351884]
[1718249403842,0.05,67478.0,67470.0,0.1]
[1718249404074,0.05,67478.0,67471.0,0.00351847]
[1718249404295,0.07215996,67488.0,67471.0,0.00351847]
[1718249404296,0.08949533,67482.0,67476.0,0.0759]
[1718249404533,0.03949533,67482.0,67477.0,0.00352133]
[1718249404782,0.03949533,67482.0,67476.0,0.0759]
[1718249405003,0.07215996,67488.0,67477.0,0.00196239]
[1718249405004,0.03949533,67485.0,67477.0,0.00196239]
[1718249405265,0.07215996,67481.0,67476.0,0.0759]
[1718249405483,0.07215996,67481.0,67475.0,0.1613]
[1718249405484,0.08949533,67476.0,67475.0,0.1613]
[1718249405714,0.08949533,67471.0,67470.0,0.2376]
[1718249405957,0.05,67462.0,67461.0,0.2321]
[1718249406171,0.05,67457.0,67455.0,0.151]
[1718249406414,0.05,67457.0,67447.0,0.5774]
[1718249406415,0.05,67448.0,67447.0,0.4774]
[1718249406652,0.05,67459.0,67446.0,0.1]
[1718249406867,0.05,67467.0,67457.0,0.2321]
[1718249407088,0.03949533,67468.0,67458.0,0.00592099]
[1718249407329,0.014,67471.0,67464.0,0.1537]
[1718249407559,0.43295979,67480.0,67468.0,0.2558]
[1718249407560,0.03949533,67479.0,67468.0,0.2558]
[1718249407790,0.05,67486.0,67473.0,0.1]
[1718249408023,0.19431993,67486.0,67476.0,0.1537]
[1718249408232,0.08949533,67490.0,67480.0,0.2314]
[1718249408472,0.08949533,67490.0,67481.0,0.00592632]
[1718249408473,0.014,67485.0,67481.0,0.00592632]
[1718249408698,0.014,67485.0,67484.0,0.2537]
[1718249408930,0.07215996,67501.0,67484.0,0.2537]
[1718249408931,0.05,67497.0,67487.0,0.1]
[1718249409146,0.03949533,67505.0,67494.0,0.0792]
[1718249409357,0.18381526,67505.0,67495.0,0.10137404]
[1718249409572,0.18381526,67505.0,67494.0,0.0792]
[1718249409573,0.05,67504.0,67496.0,0.00311662]
[1718249409796,0.05,67504.0,67494.0,0.0792]
[1718249410045,0.12215996,67501.0,67494.0,0.0792]
[1718249410248,0.014,67497.0,67495.0,0.04649899]
[1718249410673,0.03949533,67505.0,67495.0,0.04649899]
[1718249410899,0.014,67504.0,67495.0,0.14649899]
[1718249411114,0.014,67504.0,67502.0,0.2376]
[1718249411370,0.03949533,67509.0,67503.0,0.00592494]
[1718249411578,0.11165529,67509.0,67503.0,0.05227249]
[1718249411791,0.11165529,67509.0,67502.0,0.2376]
[1718249412041,0.014,67505.0,67502.0,0.2376]
[1718249412274,0.08949533,67503.0,67502.0,0.1547]
[1718249412485,0.18381526,67503.0,67502.0,0.1547]
[1718249412704,0.07215996,67509.0,67502.0,0.1547]
[1718249412705,0.08949533,67508.0,67502.0,0.1547]
[1718249412920,0.08949533,67508.0,67487.0,0.1]
[1718249412921,0.08949533,67495.0,67490.0,0.165]
[1718249413139,0.03949533,67487.0,67486.0,0.4774]
[1718249413356,0.07215996,67498.0,67486.0,0.1558]
[1718249413357,0.03949533,67490.0,67486.0,0.1558]
[1718249413564,0.03949533,67490.0,67485.0,0.165]
[1718249413788,0.07215996,67488.0,67485.0,0.165]
[1718249414434,0.05,67485.0,67479.0,0.1521]
[1718249414855,0.18381526,67487.0,67479.0,0.1521]
[1718249414856,0.05,67483.0,67479.0,0.1521]
[1718249415096,0.14431993,67484.0,67479.0,0.1521]
[1718249415097,0.07215996,67481.0,67479.0,0.1521]
[1718249415354,0.07215996,67481.0,67474.0,0.0827]
[1718249415355,0.05,67480.0,67474.0,0.0827]
[1718249415793,0.05,67480.0,67473.0,0.4774]
[1718249415794,0.03949533,67474.0,67473.0,0.4774]
[1718249416011,0.23381526,67474.0,67473.0,0.4774]
[1718249416435,0.25043833,67474.0,67473.0,0.4774]
[1718249416858,0.23381526,67474.0,67473.0,0.4774]
[1718249417284,0.25043833,67474.0,67473.0,0.4774]
[1718249417508,0.26585909,67474.0,67473.0,0.4774]
[1718249417774,0.26585909,67474.0,67460.0,0.1558]
[1718249417775,0.03949533,67461.0,67460.0,0.4774]
[1718249417986,0.03949533,67454.0,67452.0,0.1511]
[1718249418209,0.05,67460.0,67453.0,0.00232459]
[1718249418210,0.03949533,67456.0,67453.0,0.00232459]
[1718249418421,0.03949533,67454.0,67453.0,0.00309051]
[1718249418628,0.03949533,67458.0,67453.0,0.00309051]
[1718249419057,0.07215996,67468.0,67453.0,0.00309051]
[1718249419058,0.03949533,67457.0,67453.0,0.00309051]
[1718249419498,0.001,67454.0,67453.0,0.00309051]
[1718249419705,0.001,67454.0,67453.0,0.04202956]
[1718249419937,0.001,67454.0,67453.0,0.28512806]
[1718249420150,0.03949533,67466.0,67454.0,0.1]
[1718249420396,0.03949533,67466.0,67456.0,0.1]
[1718249420623,0.001,67457.0,67456.0,0.40011993]
[1718249421038,0.001,67457.0,67453.0,0.003]
[1718249421242,0.001,67454.0,67453.0,0.003]
[1718249421452,0.001,67457.0,67453.0,0.003]
[1718249421687,0.001,67457.0,67453.0,0.1588]
[1718249421894,0.04049533,67466.0,67453.0,0.1558]
[1718249422108,0.04049533,67466.0,67454.0,0.00481082]
[1718249422109,0.05,67460.0,67454.0,0.00481082]
[1718249422530,0.12215996,67464.0,67454.0,0.00481082]
[1718249422740,0.07215996,67464.0,67454.0,0.00481082]
[1718249423211,0.001,67457.0,67454.0,0.00481082]
[1718249423423,0.001,67457.0,67453.0,0.001]
[1718249423639,0.05,67460.0,67455.0,0.00276226]
[1718249424069,0.03949533,67466.0,67457.0,0.1558]
[1718249424315,0.07215996,67462.0,67458.0,0.2337]
[1718249424541,0.001,67464.0,67458.0,0.2337]
[1718249424542,0.051,67464.0,67458.0,0.2337]
[1718249424763,0.05,67464.0,67458.0,0.2337]
[1718249424980,0.003,67460.0,67459.0,0.00199718]
[1718249425608,0.00282168,67460.0,67459.0,0.0258669]
[1718249426441,0.03949533,67466.0,67459.0,0.02667598]
[1718249426660,0.001,67462.0,67459.0,0.02667598]
[1718249426910,0.001,67460.0,67459.0,0.02967598]
[1718249427124,0.001,67460.0,67459.0,0.26160626]
[1718249427329,0.001,67460.0,67459.0,0.27160626]
[1718249427758,0.001,67460.0,67459.0,0.26160626]
[1718249428025,0.001,67460.0,67459.0,0.013]
[1718249428230,0.46421526,67460.0,67459.0,0.013]
[1718249428439,0.03949533,67452.0,67441.0,0.0136274]
[1718249429318,0.03949533,67452.0,67442.0,0.1558]
[1718249430199,0.03949533,67452.0,67441.0,0.1694274]
[1718249430419,0.03949533,67452.0,67446.0,0.1558]
[1718249430917,0.03949533,67452.0,67441.0,0.0136274]
[1718249430918,0.12215996,67451.0,67441.0,0.0136274]
[1718249431126,0.03949533,67444.0,67442.0,0.014]
[1718249431344,0.0561184,67443.0,67442.0,0.014]
[1718249431555,0.0561184,67443.0,67441.0,0.0136274]
[1718249431556,0.1061184,67442.0,67441.0,0.0136274]
[1718249431780,0.23381526,67442.0,67441.0,0.0136274]
[1718249432254,0.03949533,67446.0,67441.0,0.0136274]
[1718249432458,0.03949533,67442.0,67441.0,0.0136274]
[1718249433605,0.055,67442.0,67441.0,0.0146274]
[1718249433814,0.09649533,67442.0,67441.0,0.0156274]
[1718249434015,0.09449533,67442.0,67441.0,0.0146274]
[1718249434435,0.23881526,67442.0,67441.0,0.0146274]
[1718249434683,0.25543833,67442.0,67441.0,0.0226274]
[1718249434908,0.28098216,67442.0,67441.0,0.0136274]
[1718249435126,0.61748216,67442.0,67441.0,0.0136274]
[1718249435332,0.69164212,67442.0,67441.0,0.0146274]
[1718249435747,0.69264212,67442.0,67441.0,0.0266274]
[1718249436191,0.66609829,67442.0,67441.0,0.0146274]
[1718249436407,0.68909829,67442.0,67441.0,0.0146274]
[1718249436614,0.70309829,67442.0,67441.0,0.0156274]
[1718249437264,0.67809829,67442.0,67441.0,0.0146274]
[1718249437468,0.79590812,67442.0,67441.0,0.0146274]
[1718249437679,0.82090812,67442.0,67441.0,0.0146274]
[1718249437878,0.81890812,67442.0,67441.0,0.0146274]
[1718249438084,0.67809829,67442.0,67441.0,0.0146274]
[1718249438301,0.67809829,67442.0,67441.0,0.0136274]
[1718249438302,0.49193833,67442.0,67441.0,0.0136274]
[1718249438576,0.50593833,67442.0,67441.0,0.0136274]
[1718249439191,0.49193833,67442.0,67441.0,0.0136274]
[1718249439383,0.49593833,67442.0,67441.0,0.0146274]
[1718249439585,0.66242216,67442.0,67441.0,0.0146274]
[1718249439717,0.60993833,67442.0,67441.0,0.0146274]
[1718249439922,0.59593833,67442.0,67441.0,0.0146274]
[1718249440706,0.59193833,67442.0,67441.0,0.0136274]
[1718249441150,0.60593833,67442.0,67441.0,0.0146274]
[1718249441556,0.60593833,67442.0,67441.0,0.0136274]
[1718249441766,0.60593833,67442.0,67441.0,0.0146274]
[1718249442005,0.61993833,67442.0,67441.0,0.0146274]
[1718249442169,0.60593833,67442.0,67441.0,0.0136274]
[1718249442647,0.62893833,67442.0,67441.0,0.0146274]
[1718249442824,0.36443833,67442.0,67441.0,0.0146274]
[1718249442960,0.38843833,67442.0,67441.0,0.0146274]
[1718249443154,0.62373833,67442.0,67441.0,0.0146274]
[1718249443359,0.61373833,67442.0,67441.0,0.0146274]
[1718249444415,0.58573833,67442.0,67441.0,0.0136274]
[1718249444919,0.61373833,67442.0,67441.0,0.0146274]
[1718249445113,0.36443833,67442.0,67441.0,0.0136274]
[1718249445632,0.36443833,67442.0,67441.0,0.0146274]
[1718249445844,0.36443833,67442.0,67441.0,0.0136274]
[1718249446296,0.35043833,67442.0,67441.0,0.0136274]
[1718249446507,0.36443833,67442.0,67441.0,0.0146274]
[1718249446707,0.24781526,67442.0,67441.0,0.0146274]
[1718249447217,0.24781526,67442.0,67441.0,0.0154874]
[1718249447435,0.19781526,67442.0,67441.0,0.0154874]
[1718249447617,0.24781526,67442.0,67441.0,0.0154874]
[1718249447823,0.24781526,67442.0,67441.0,0.0144874]
[1718249447997,0.24781526,67442.0,67441.0,0.0154874]
[1718249448203,0.26181526,67442.0,67441.0,0.0154874]
[1718249449294,0.28799679,67442.0,67441.0,0.0154874]
[1718249449421,0.30461986,67442.0,67441.0,0.0154874]
[1718249449624,0.28799679,67442.0,67441.0,0.0154874]
[1718249449821,0.26102824,67442.0,67441.0,0.0154874]
[1718249450257,0.21102824,67442.0,67441.0,0.0154874]
[1718249450455,0.06670831,67442.0,67441.0,0.0154874]
[1718249451788,0.26102824,67442.0,67441.0,0.0154874]
[1718249452166,0.06670831,67442.0,67441.0,0.0154874]
[1718249452403,0.26102824,67442.0,67441.0,0.0154874]
[1718249452820,0.06670831,67442.0,67441.0,0.0154874]
[1718249453441,0.05270831,67442.0,67441.0,0.0144874]
[1718249454143,0.03870831,67443.0,67441.0,0.0144874]
[1718249454339,0.03870831,67443.0,67441.0,0.0197644]
[1718249454561,0.014,67442.0,67441.0,0.0144874]
[1718249455242,0.03870831,67443.0,67441.0,0.0164874]
[1718249455672,0.03970831,67443.0,67441.0,0.0184874]
[1718249456100,0.32181127,67442.0,67441.0,0.0184874]
[1718249456326,0.32181127,67442.0,67441.0,0.0164874]
[1718249456544,0.3778724,67442.0,67441.0,0.0144874]
[1718249456966,0.3778724,67442.0,67441.0,0.0154874]
[1718249457180,0.36124933,67442.0,67441.0,0.0154874]
[1718249457391,0.18302824,67442.0,67441.0,0.0154874]
[1718249457635,0.08870831,67442.0,67441.0,0.0154874]
[1718249457847,0.05270831,67443.0,67441.0,0.0174874]
[1718249458262,0.05270831,67443.0,67441.0,0.0154874]
[1718249458263,0.3051882,67442.0,67441.0,0.0154874]
[1718249458497,0.32181127,67442.0,67441.0,0.0154874]
[1718249458731,0.33581127,67442.0,67441.0,0.0154874]
[1718249459001,0.33581127,67442.0,67441.0,0.0144874]
[1718249459204,0.33581127,67442.0,67441.0,0.0154874]
[1718249459409,0.24702824,67442.0,67441.0,0.0154874]
[1718249459643,0.23402824,67442.0,67441.0,0.0164874]
[1718249459853,0.24802824,67442.0,67441.0,0.0174874]
[1718249460957,0.24802824,67442.0,67441.0,0.0154874]
[1718249460958,0.26365131,67442.0,67441.0,0.0154874]
[1718249461164,0.29001644,67442.0,67441.0,0.0154874]
[1718249461393,0.26365131,67442.0,67441.0,0.0144874]
[1718249461656,0.26365131,67442.0,67441.0,0.0154874]
[1718249461930,0.27765131,67442.0,67441.0,0.0154874]
[1718249462162,0.26365131,67442.0,67441.0,0.0144874]
[1718249462385,0.30401644,67442.0,67441.0,0.0154874]
[1718249462603,0.26102824,67442.0,67441.0,0.0154874]
[1718249464612,0.028,67442.0,67441.0,0.0154874]
[1718249464837,0.06670831,67442.0,67441.0,0.0154874]
[1718249465260,0.06670831,67442.0,67441.0,0.02015035]
[1718249465558,0.028,67442.0,67441.0,0.02015035]
[1718249465771,0.028,67442.0,67441.0,0.14801539]
[1718249466188,0.028,67442.0,67441.0,0.04801539]
[1718249466594,0.028,67442.0,67441.0,0.14801539]
[1718249466813,0.014,67442.0,67441.0,0.01915035]
[1718249467243,0.014,67442.0,67441.0,0.0144874]
[1718249467462,0.05,67446.0,67441.0,0.0144874]
[1718249467682,0.001,67442.0,67441.0,0.0174874]
[1718249468324,0.03970831,67442.0,67441.0,0.0174874]
[1718249468525,0.03970831,67442.0,67441.0,0.0144874]
[1718249468526,0.03870831,67442.0,67441.0,0.0144874]
[1718249469797,0.24965131,67442.0,67441.0,0.0144874]
[1718249470947,0.48295131,67442.0,67441.0,0.0144874]
[1718249471149,0.58295131,67442.0,67441.0,0.0144874]
[1718249471581,0.6932094,67442.0,67441.0,0.0144874]
[1718249471826,0.58495131,67442.0,67441.0,0.0144874]
[1718249472151,0.64866244,67442.0,67441.0,0.0144874]
[1718249472354,0.58395131,67442.0,67441.0,0.0174874]
[1718249472556,0.59795131,67442.0,67441.0,0.0184874]
[1718249472838,0.58395131,67442.0,67441.0,0.0174874]
[1718249472999,0.58295131,67442.0,67441.0,0.0144874]
[1718249473288,0.66246244,67442.0,67441.0,0.0154874]
[1718249473504,1.01628489,67442.0,67441.0,0.0154874]
[1718249473716,1.32391114,67442.0,67441.0,0.0154874]
[1718249474920,1.30991114,67442.0,67441.0,0.0144874]
[1718249475300,1.32391114,67442.0,67441.0,0.0144874]
[1718249475523,1.30991114,67442.0,67441.0,0.0147963]
[1718249475708,1.39591114,67442.0,67441.0,0.0147963]
[1718249475937,1.42391114,67442.0,67441.0,0.0147963]
[1718249476454,1.33960539,67442.0,67441.0,0.0147963]
[1718249476589,1.29591114,67442.0,67441.0,0.0147963]
[1718249476795,1.35360539,67442.0,67441.0,0.0147963]
[1718249477001,1.37545251,67442.0,67441.0,0.0147963]
[1718249477481,1.32391114,67442.0,67441.0,0.0147963]
[1718249478053,1.30991114,67442.0,67441.0,0.0147963]
[1718249478262,1.40991114,67442.0,67441.0,0.0147963]
[1718249478456,1.42391114,67442.0,67441.0,0.0147963]
[1718249478660,1.40991114,67442.0,67441.0,0.0147963]
[1718249478920,1.39591114,67442.0,67441.0,0.0147963]
[1718249479132,1.40991114,67442.0,67441.0,0.0147963]
[1718249479354,1.42391114,67442.0,67441.0,0.0147963]
[1718249479569,1.32391114,67442.0,67441.0,0.0147963]
[1718249479771,1.31391114,67442.0,67441.0,0.0147963]
[1718249479985,1.25840001,67442.0,67441.0,0.0147963]
[1718249480190,1.30207089,67442.0,67441.0,0.0147963]
[1718249480848,1.25840001,67442.0,67441.0,0.0147963]
[1718249481041,1.30207089,67442.0,67441.0,0.0147963]
[1718249481177,1.44639082,67442.0,67441.0,0.0147963]
[1718249481896,1.44622585,67442.0,67441.0,0.0147963]
[1718249482749,1.45369492,67442.0,67441.0,0.0147963]
[1718249484032,1.30937499,67442.0,67441.0,0.0147963]
[1718249484260,1.30937499,67442.0,67420.0,0.4774]
[1718249484261,0.03854334,67415.0,67413.0,0.1]
[1718249484729,0.03854334,67423.0,67414.0,0.1]
[1718249484929,0.03854334,67421.0,67415.0,0.10124599]
[1718249485138,0.03854334,67427.0,67419.0,0.1]
[1718249485309,0.03854334,67424.0,67418.0,0.1558]
[1718249485630,0.03854334,67424.0,67418.0,0.2558]
[1718249486131,0.03854334,67424.0,67420.0,0.1558]
[1718249486551,0.03954334,67424.0,67420.0,0.1558]
[1718249487114,0.04054334,67424.0,67419.0,0.2328]
[1718249487992,0.04859767,67424.0,67419.0,0.2328]
[1718249488284,0.12215996,67422.0,67418.0,0.001]
[1718249488527,0.12215996,67422.0,67420.0,0.001]
[1718249488528,0.24948634,67421.0,67420.0,0.001]
[1718249488941,0.24948634,67421.0,67420.0,0.003]
[1718249489151,0.03854334,67415.0,67412.0,0.2341]
[1718249489359,0.18286327,67415.0,67412.0,0.2341]
[1718249489783,0.05,67413.0,67412.0,0.2341]
[1718249490006,0.05,67389.0,67386.0,0.00857]
[1718249490433,0.08854334,67389.0,67386.0,0.00857]
[1718249490634,0.10516641,67389.0,67386.0,0.00857]
[1718249490848,0.08854334,67389.0,67386.0,0.00857]
[1718249491274,0.19431993,67389.0,67386.0,0.00857]
[1718249491727,0.2561496,67389.0,67386.0,0.00857]
[1718249492401,0.23286327,67389.0,67386.0,0.00857]
[1718249492840,0.26086327,67389.0,67386.0,0.00857]
[1718249493054,0.06654334,67389.0,67386.0,0.00857]
[1718249493268,0.06654334,67389.0,67388.0,0.01296417]